bitfinex-derivatives/quotes_SOLF0:USTF0_20250731
["timestamp","ask_amount","ask_price","bid_price","bid_amount"]
[1753964914885,5.5507,180.19,180.03,373.12]
[1753964915275,5.5507,180.19,180.15,5.5516]
[1753964916086,5.5507,180.19,180.16,5.5514]
[1753964916282,4.61060035,180.26,180.1,148.82414646]
[1753964916483,8.6921754,180.26,180.1,148.82414646]
[1753964916975,8.6921754,180.26,180.17,5.5512]
[1753964917175,8.6921754,180.26,180.1,148.82414646]
[1753964917375,5.5503,180.2,180.1,148.82414646]
[1753964917983,5.5503,180.2,180.16,5.5512]
[1753964918175,5.5503,180.2,180.1,148.82414646]
[1753964919279,5.55,180.22,180.17,5.551]
[1753964919483,4.61060035,180.26,180.1,148.82414646]
[1753964919780,4.08331805,180.25,180.11,11.1062]
[1753964919984,9.63251805,180.24,180.11,11.1062]
[1753964920201,4.08331805,180.23,180.11,11.1062]
[1753964920486,9.63281805,180.23,180.11,11.1062]
[1753964920686,4.61060035,180.27,180.11,11.1062]
[1753964921185,5.5493,180.24,180.19,5.5505]
[1753964921383,4.0970527,180.23,180.19,5.5505]
[1753964921585,4.61060035,180.27,180.18,5.5508]
[1753964922178,5.5496,180.23,180.19,5.5506]
[1753964922976,5.5496,180.23,180.11,11.1062]
[1753964923175,5.5489,180.25,180.11,11.1062]
[1753964923383,4.61060035,180.29,180.11,11.1062]
[1753964923886,5.5493,180.24,180.11,11.1062]
[1753964924386,5.5489,180.25,180.12,11.1052]
[1753964924886,5.5486,180.26,180.21,5.55]
[1753964925379,5.5483,180.27,180.22,5.5496]
[1753964925580,4.61060035,180.32,180.22,5.5496]
[1753964925788,8.70679812,180.31,180.22,5.5496]
[1753964925986,5.5488,180.26,180.21,5.5499]
[1753964926380,5.5488,180.26,180.12,11.1052]
[1753964926786,5.5489,180.25,180.21,5.5499]
[1753964926988,4.61060035,180.29,180.1,148.82414646]
[1753964927190,8.704466,180.28,180.1,148.82414646]
[1753964927387,9.20844304,180.32,180.1,148.82414646]
[1753964927388,5.5503,180.21,180.1,148.82414646]
[1753964927581,4.61060035,180.27,180.1,148.82414646]
[1753964927886,5.5498,180.22,180.18,5.5507]
[1753964928787,5.5501,180.21,180.1,148.82414646]
[1753964928987,4.61060035,180.28,180.1,148.82414646]
[1753964929187,5.5498,180.22,180.17,5.551]
[1753964929390,4.61060035,180.27,180.1,148.82414646]
[1753964929885,5.5499,180.22,180.18,5.5509]
[1753964930588,5.5503,180.21,180.16,5.5513]
[1753964930788,5.5503,180.21,180.1,148.82414646]
[1753964931289,5.5503,180.21,180.17,5.551]
[1753964931491,4.09236476,180.2,180.1,148.82414646]
[1753964931791,4.61060035,180.24,180.1,148.82414646]
[1753964931990,5.5512,180.18,180.1,148.82414646]
[1753964933295,5.5512,180.18,180.14,5.552]
[1753964933593,5.5507,180.19,180.1,148.82414646]
[1753964934279,5.5507,180.19,180.14,5.5519]
[1753964934486,5.551,180.18,180.14,5.5519]
[1753964935993,5.551,180.18,180.15,5.5519]
[1753964936391,5.5507,180.19,180.15,5.5519]
[1753964936591,4.11288878,180.18,180.15,5.5519]
[1753964936792,5.5507,180.19,180.15,5.5519]
[1753964937091,4.1128829,180.18,180.15,5.5519]
[1753964937291,6.13896202,180.25,180.1,148.82414646]
[1753964937292,5.5501,180.21,180.1,148.82414646]
[1753964937496,4.11463369,180.2,180.1,148.82414646]
[1753964937694,4.11463369,180.19,180.1,148.82414646]
[1753964937895,4.61060035,180.26,180.1,148.82414646]
[1753964938287,5.5493,180.24,180.2,5.5503]
[1753964938483,4.11561525,180.23,180.2,5.5503]
[1753964939191,9.66501525,180.23,180.19,5.5504]
[1753964939397,4.11561525,180.22,180.1,159.93074646]
[1753964939605,4.11561525,180.21,180.1,148.82414646]
[1753964939790,4.11561525,180.2,180.16,5.5514]
[1753964939992,4.11561525,180.19,180.1,148.82414646]
[1753964940299,4.12000389,180.18,180.1,148.82414646]
[1753964940490,5.5507,180.19,180.15,5.5516]
[1753964940692,4.11996902,180.18,180.15,5.5516]
[1753964940991,5.5507,180.19,180.15,5.5516]
[1753964941193,4.12020549,180.18,180.15,5.5516]
[1753964941398,5.5507,180.19,180.15,5.5516]
[1753964941600,4.12044883,180.18,180.15,5.5516]
[1753964941905,5.5504,180.2,180.16,5.5515]
[1753964942096,4.61060035,180.22,180.1,148.82414646]
[1753964942097,4.12044883,180.19,180.1,148.82414646]
[1753964942295,4.12044883,180.18,180.1,148.82414646]
[1753964942492,4.61060035,180.22,180.1,148.82414646]
[1753964942893,8.7458399,180.22,180.1,148.82414646]
[1753964943095,5.551,180.19,180.1,148.82414646]
[1753964943294,4.13523955,180.18,180.1,148.82414646]
[1753964943495,5.551,180.19,180.1,148.82414646]
[1753964943695,4.13514005,180.18,180.1,148.82414646]
[1753964943912,4.13495305,180.17,180.1,148.82414646]
[1753964944202,5.551,180.19,180.1,148.82414646]
[1753964944498,4.13478331,180.18,180.15,5.5522]
[1753964944692,4.13478331,180.17,180.15,5.5522]
[1753964944893,5.551,180.19,180.15,5.5522]
[1753964945093,4.13452035,180.18,180.16,5.5517]
[1753964945298,4.13452035,180.17,180.16,5.5517]
[1753964945498,4.13452035,180.17,180.1,148.82414646]
[1753964945700,5.5508,180.2,180.15,5.552]
[1753964945897,4.13526658,180.19,180.15,5.552]
[1753964946098,4.13526658,180.18,180.15,5.552]
[1753964946296,4.13526658,180.17,180.15,5.552]
[1753964946498,5.5508,180.2,180.15,5.552]
[1753964946796,9.68680742,180.19,180.15,5.552]
[1753964947095,4.13570742,180.18,180.15,5.552]
[1753964947295,4.13570742,180.17,180.15,5.552]
[1753964947499,5.5509,180.2,180.15,5.552]
[1753964947797,4.13634398,180.19,180.15,5.552]
[1753964947998,4.13634398,180.18,180.15,5.552]
[1753964948197,4.13634398,180.17,180.15,5.552]
[1753964948398,5.5509,180.2,180.15,5.552]
[1753964948702,9.68751553,180.19,180.15,5.552]
[1753964948899,4.13641553,180.18,180.15,5.552]
[1753964949094,4.13641553,180.17,180.15,5.552]
[1753964949296,5.5511,180.19,180.15,5.552]
[1753964949589,4.13617655,180.18,180.15,5.552]
[1753964949794,4.13617655,180.17,180.15,5.552]
[1753964949993,5.5511,180.19,180.15,5.552]
[1753964950197,4.13617655,180.18,180.15,5.552]
[1753964950396,4.13617655,180.17,180.15,5.552]
[1753964950596,5.5511,180.19,180.15,5.552]
[1753964950797,4.13529487,180.18,180.15,5.552]
[1753964950996,4.13529487,180.17,180.15,5.552]
[1753964951198,5.5511,180.19,180.15,5.552]
[1753964951397,4.13514857,180.18,180.15,5.552]
[1753964951600,4.13514857,180.17,180.15,5.552]
[1753964951801,5.5511,180.19,180.15,5.552]
[1753964952000,4.13514857,180.18,180.15,5.552]
[1753964952198,4.13514857,180.17,180.15,5.552]
[1753964952400,5.5511,180.19,180.15,5.552]
[1753964952700,4.13503519,180.18,180.15,5.552]
[1753964952901,4.13503519,180.17,180.15,5.552]
[1753964953098,4.61060035,180.23,180.01,12.40328551]
[1753964953299,4.61060035,180.21,180.0,16.69]
[1753964953499,9.8374331,180.2,180.16,5.5519]
[1753964953699,4.13502208,180.19,180.16,5.5519]
[1753964953900,4.13502208,180.18,180.16,5.5519]
[1753964954102,4.13502208,180.17,180.16,5.5519]
[1753964958913,4.13502208,180.17,180.09,11.1081]
[1753964959110,5.5512,180.19,180.09,11.1081]
[1753964959411,4.13206425,180.18,180.09,11.1081]
[1753964959613,4.13206425,180.17,180.09,11.1081]
[1753964959806,5.5512,180.19,180.09,11.1081]
[1753964960011,4.13205833,180.18,180.09,11.1081]
[1753964960218,4.13205833,180.17,180.09,11.1081]
[1753964960411,5.5512,180.19,180.09,11.1081]
[1753964960613,4.13195006,180.18,180.09,11.1081]
[1753964960813,4.13195006,180.17,180.09,11.1081]
[1753964961116,5.5508,180.2,180.16,5.5518]
[1753964961318,4.13184967,180.19,180.16,5.5518]
[1753964961520,4.13184967,180.18,180.16,5.5518]
[1753964961720,4.13184967,180.17,180.16,5.5518]
[1753964961921,4.13184967,180.19,180.09,11.1081]
[1753964962220,4.13184967,180.18,180.09,11.1081]
[1753964962418,4.13184967,180.17,180.09,11.1081]
[1753964962623,5.5512,180.19,180.15,5.552]
[1753964962816,4.1322604,180.18,180.15,5.552]
[1753964963020,4.1322604,180.17,180.15,5.552]
[1753964963220,5.5512,180.19,180.15,5.552]
[1753964963421,4.13220448,180.18,180.15,5.552]
[1753964963621,4.13220448,180.17,180.16,5.5519]
[1753964967117,4.13220448,180.17,180.09,11.1081]
[1753964967118,4.61060035,180.23,180.18,5.5513]
[1753964967423,5.5507,180.2,180.09,11.1081]
[1753964967625,4.13321203,180.19,180.09,11.1081]
[1753964968025,4.13321203,180.19,180.17,5.5514]
[1753964969631,9.68421203,180.19,180.17,5.5514]
[1753964969852,4.13321203,180.18,180.09,11.1081]
[1753964970031,4.13321203,180.17,180.09,11.1081]
[1753964970227,4.61060035,180.2,180.09,11.1081]
[1753964970228,4.13321203,180.16,180.09,11.1081]
[1753964970433,4.61060035,180.2,180.09,11.1081]
[1753964970732,5.5515,180.18,180.09,11.1081]
[1753964970928,4.14966904,180.17,180.15,5.5522]
[1753964971134,4.14966904,180.16,180.15,5.5522]
[1753964978242,4.14966904,180.16,180.11,5.5534]
[1753964978436,4.14966904,180.15,180.11,5.5534]
[1753964978640,4.61060035,180.19,180.11,5.5534]
[1753964978838,4.15520509,180.18,180.11,5.5534]
[1753964979040,4.15520509,180.17,180.11,5.5534]
[1753964979240,4.15520509,180.16,180.11,5.5534]
[1753964979434,4.15520509,180.15,180.11,5.5534]
[1753964979637,4.61060035,180.19,180.11,5.5534]
[1753964979843,4.15517177,180.18,180.11,5.5534]
[1753964980046,4.15517177,180.17,180.11,5.5534]
[1753964980344,4.15517177,180.16,180.11,5.5534]
[1753964980546,4.15517177,180.15,180.11,5.5534]
[1753964980738,4.61060035,180.19,180.11,5.5534]
[1753964981341,8.76354984,180.19,180.11,5.5534]
[1753964981541,4.15294949,180.18,180.11,5.5534]
[1753964981742,4.15294949,180.17,180.11,5.5534]
[1753964981947,4.15294949,180.16,180.11,5.5534]
[1753964982144,4.61060035,180.23,180.15,5.552]
[1753964982341,4.61060035,180.25,180.15,5.552]
[1753964982741,4.61060035,180.26,180.17,5.5513]
[1753964983243,4.61060035,180.27,180.17,5.5513]
[1753964984147,4.61060035,180.27,180.14,5.5522]
[1753964984344,4.61060035,180.25,180.05,12.40328551]
[1753964984540,4.61060035,180.24,180.04,12.40328551]
[1753964984846,4.61060035,180.23,180.02,12.40328551]
[1753964985045,4.61060035,180.22,180.02,12.40328551]
[1753964985246,4.61060035,180.22,180.07,5.5545]
[1753964985443,4.61060035,180.22,180.01,12.40328551]
[1753964985644,4.6302194,180.22,180.01,12.40328551]
[1753964986247,4.6302194,180.22,180.09,5.5538]
[1753964988252,10.1803194,180.22,180.06,5.5546]
[1753964988545,4.6302194,180.21,180.06,5.5546]
[1753964988949,4.6302194,180.21,180.08,5.5541]
[1753964989255,4.6302194,180.21,180.01,12.40328551]
[1753964989746,4.6302194,180.21,180.07,5.5546]
[1753964990050,4.6302194,180.21,180.01,12.40328551]
[1753964991150,4.6302194,180.21,180.11,5.5532]
[1753964994154,4.14950319,180.2,180.11,5.5532]
[1753964994354,4.14950319,180.19,180.11,5.5532]
[1753964994555,4.14950319,180.18,180.11,5.5532]
[1753964994754,4.14950319,180.17,180.11,5.5532]
[1753964995054,4.6302194,180.21,180.11,5.5532]
[1753964995250,4.16336032,180.2,180.11,5.5532]
[1753964995455,4.16336032,180.19,180.11,5.5532]
[1753964995657,4.16336032,180.18,180.01,45.73328551]
[1753964995955,4.6302194,180.25,180.05,12.40328551]
[1753964996154,4.6302194,180.25,180.04,12.40328551]
[1753964996350,8.79462393,180.25,180.06,16.67]
[1753964996552,4.16440453,180.24,180.07,12.40328551]
[1753964996756,4.6302194,180.28,180.07,12.40328551]
[1753964997057,4.6302194,180.28,180.07,29.07328551]
[1753964997265,8.79421932,180.28,180.07,29.07328551]
[1753964997560,4.16399992,180.27,180.07,29.07328551]
[1753964997761,4.16399992,180.26,180.07,29.07328551]
[1753964997953,4.16399992,180.25,180.07,29.07328551]
[1753964998151,4.6302194,180.29,180.07,29.07328551]
[1753964998356,4.16024508,180.28,180.07,29.07328551]
[1753964998562,4.16024508,180.27,180.09,29.07328551]
[1753964998757,4.6302194,180.32,180.09,29.07328551]
[1753964998963,8.79090942,180.31,180.09,16.67]
[1753964999165,4.16069002,180.3,180.09,16.67]
[1753964999558,4.16069002,180.3,180.08,16.67]
[1753965000158,4.62609414,180.31,180.08,16.67]
[1753965000365,4.15812643,180.3,180.1,12.40328551]
[1753965000563,4.62609414,180.35,180.11,33.33]
[1753965000964,8.78524205,180.35,180.23,5.5493]
[1753965001165,4.15914791,180.34,180.23,5.5493]
[1753965001363,10.17289414,180.32,180.17,5.5511]
[1753965001566,8.78524205,180.31,180.17,5.5511]
[1753965001869,4.15914791,180.3,180.08,16.67]
[1753965002068,4.15914791,180.29,180.08,33.33]
[1753965002372,4.15914791,180.28,180.08,33.33]
[1753965002673,4.62609414,180.33,180.08,33.33]
[1753965002863,4.18341126,180.32,180.08,33.33]
[1753965003063,4.18341126,180.31,180.08,33.33]
[1753965003367,4.18341126,180.3,180.1,16.67]
[1753965003572,4.18341126,180.29,180.1,16.67]
[1753965003761,4.62609414,180.34,180.1,16.67]
[1753965003962,4.18132567,180.33,180.1,16.67]
[1753965004267,4.18132567,180.32,180.22,5.5497]
[1753965004470,4.18132567,180.31,180.22,5.5497]
[1753965004668,4.18132567,180.3,180.22,5.5497]
[1753965004865,4.18132567,180.29,180.22,5.5497]
[1753965005071,4.62609414,180.34,180.22,5.5497]
[1753965005367,4.17931983,180.33,180.22,5.5497]
[1753965005559,4.17931983,180.32,180.22,5.5497]
[1753965005760,4.62609414,180.37,180.22,5.5497]
[1753965005966,4.17893479,180.36,180.11,33.33]
[1753965006165,4.17893479,180.35,180.13,33.33]
[1753965006367,4.62609414,180.39,180.13,33.33]
[1753965006668,4.17578225,180.38,180.13,16.67]
[1753965006969,4.17578225,180.37,180.13,16.67]
[1753965007165,4.17578225,180.36,180.13,33.33]
[1753965007370,4.17578225,180.35,180.13,33.33]
[1753965007571,4.62609414,180.41,180.13,33.33]
[1753965007869,4.18699506,180.4,180.13,33.33]
[1753965008069,4.18699506,180.39,180.15,16.67]
[1753965008269,4.18699506,180.38,180.25,5.5488]
[1753965008471,4.18699506,180.37,180.25,5.5488]
[1753965008670,4.62609414,180.41,180.25,5.5488]
[1753965008877,5.5438,180.42,180.13,16.66]
[1753965008878,8.81013321,180.4,180.22,5.5497]
[1753965009180,8.81013321,180.39,180.22,5.5497]
[1753965009371,4.18403907,180.38,180.22,5.5497]
[1753965009672,4.18403907,180.37,180.22,5.5497]
[1753965009880,9.72973907,180.36,180.2,5.5505]
[1753965010067,4.18403907,180.35,180.2,5.5505]
[1753965010272,4.18403907,180.34,180.2,5.5505]
[1753965010573,4.18039567,180.33,180.2,5.5505]
[1753965010867,5.5457,180.36,180.2,5.5505]
[1753965011067,4.1802157,180.35,180.2,5.5505]
[1753965011272,4.1802157,180.34,180.2,5.5505]
[1753965011567,4.1802157,180.33,180.2,5.5505]
[1753965011873,5.5457,180.36,180.2,5.5505]
[1753965012072,4.18160993,180.35,180.2,5.5505]
[1753965012276,4.18160993,180.34,180.2,5.5505]
[1753965012475,4.18160993,180.33,180.2,5.5505]
[1753965012675,4.18160993,180.32,180.18,5.5511]
[1753965012976,4.18160993,180.31,180.08,16.67]
[1753965013165,5.5469,180.32,180.18,5.551]
[1753965013369,4.1798592,180.31,180.18,5.551]
[1753965013574,4.62609414,180.35,180.18,5.551]
[1753965013776,4.18014397,180.34,180.18,5.551]
[1753965014074,4.18014397,180.33,180.18,5.551]
[1753965014275,4.18014397,180.32,180.2,5.5504]
[1753965014463,5.5462,180.35,180.2,5.5504]
[1753965014663,25.87844304,180.41,180.06,33.33]
[1753965014664,4.17997471,180.34,180.06,33.33]
[1753965014867,4.62609414,180.37,180.06,33.33]
[1753965014868,4.17997471,180.33,180.06,33.33]
[1753965015075,4.17997471,180.32,180.06,33.33]
[1753965015277,4.62609414,180.36,180.06,33.33]
[1753965015466,4.17918645,180.35,180.06,33.33]
[1753965015664,4.17918645,180.34,180.08,33.33]
[1753965015863,4.62609414,180.39,180.08,45.73328551]
[1753965016073,4.17972862,180.38,180.08,45.73328551]
[1753965016269,4.17972862,180.37,180.1,33.33]
[1753965016473,4.17972862,180.36,180.1,33.33]
[1753965016675,4.62609414,180.4,180.1,33.33]
[1753965016878,8.80496017,180.39,180.1,33.33]
[1753965017077,4.17886603,180.38,180.1,33.33]
[1753965017770,9.72406603,180.38,180.1,33.33]
[1753965018077,9.72406603,180.38,180.07,12.40328551]
[1753965018078,4.62609414,180.36,180.08,16.67]
[1753965018280,4.17886603,180.35,180.08,16.67]
[1753965018474,9.72526603,180.34,180.18,5.5511]
[1753965018678,4.17886603,180.33,180.18,5.5511]
[1753965018975,4.17886603,180.32,180.18,5.5511]
[1753965019170,4.17886603,180.31,180.2,5.5504]
[1753965019371,10.17179414,180.36,180.2,5.5504]
[1753965019571,4.19335725,180.35,180.2,5.5504]
[1753965019774,4.19335725,180.34,180.2,5.5504]
[1753965019971,4.19335725,180.34,180.06,33.33]
[1753965019972,4.19335725,180.33,180.06,33.33]
[1753965021980,5.5469,180.32,180.06,33.33]
[1753965022282,4.19335725,180.31,180.05,62.0]
[1753965022474,4.19335725,180.3,180.05,62.0]
[1753965022676,4.19335725,180.29,180.12,151.79307465]
[1753965022876,4.19335725,180.28,180.12,151.79307465]
[1753965023176,5.5475,180.3,180.14,5.5522]
[1753965023376,4.19479169,180.29,180.14,5.5522]
[1753965023681,4.19479169,180.28,180.14,5.5522]
[1753965023980,5.5475,180.3,180.14,5.5522]
[1753965024278,4.19528117,180.29,180.16,5.5517]
[1753965024481,4.19528117,180.28,180.16,5.5517]
[1753965024677,10.17299414,180.32,180.16,5.5517]
[1753965024886,5.5475,180.3,180.16,5.5517]
[1753965025069,4.196222,180.29,180.16,5.5517]
[1753965025275,5.5475,180.3,180.14,5.5524]
[1753965025276,4.196222,180.28,180.14,5.5524]
[1753965025476,4.196222,180.27,180.12,146.24007465]
[1753965026277,4.196222,180.27,180.12,151.79307465]
[1753965027889,4.196222,180.27,180.14,5.5523]
[1753965028275,4.196222,180.26,180.16,12.93901294]
[1753965028579,4.62609414,180.3,180.19,12.93901294]
[1753965028884,4.19853104,180.29,180.19,12.93901294]
[1753965029082,6.13896202,180.32,180.19,12.93901294]
[1753965029083,4.19853104,180.28,180.19,12.93901294]
[1753965029282,4.19853104,180.27,180.19,12.93901294]
[1753965029479,4.62609414,180.31,180.19,12.93901294]
[1753965029780,8.82460338,180.3,180.19,12.93901294]
[1753965029982,4.19850924,180.29,180.19,12.93901294]
[1753965030183,8.82460338,180.29,180.19,12.93901294]
[1753965030381,4.19850924,180.28,180.18,5.551]
[1753965030580,4.19850924,180.28,180.0,34.61828551]
[1753965030581,4.19850924,180.27,180.12,12.93901294]
[1753965030786,8.82460338,180.27,180.12,12.93901294]
[1753965031083,4.19850924,180.26,180.15,12.93901294]
[1753965031280,4.19850924,180.25,180.0,12.93901294]
[1753965031585,4.19850924,180.24,180.1,12.93901294]
[1753965031797,9.74820924,180.23,179.99,373.14]
[1753965031977,4.19850924,180.22,180.06,12.93901294]
[1753965032181,4.19850924,180.21,180.06,12.93901294]
[1753965032385,12.93901294,180.24,180.06,12.93901294]
[1753965032685,9.74122631,180.23,180.08,5.5542]
[1753965032885,4.19162631,180.22,180.13,12.93901294]
[1753965033083,5.5487,180.26,180.13,12.93901294]
[1753965033284,4.19213586,180.25,180.13,12.93901294]
[1753965033485,4.19213586,180.24,180.13,12.93901294]
[1753965033680,4.19213586,180.23,180.13,12.93901294]
[1753965033881,5.5487,180.26,180.13,12.93901294]
[1753965034083,4.19215485,180.25,180.13,12.93901294]
[1753965034279,4.19215485,180.24,180.13,12.93901294]
[1753965034476,4.19215485,180.23,180.13,12.93901294]
[1753965034680,5.5493,180.24,180.13,12.93901294]
[1753965034989,5.5493,180.24,180.1,18.49261294]
[1753965035185,5.5499,180.22,180.1,12.93901294]
[1753965035583,18.48891294,180.22,180.07,18.49311294]
[1753965036182,18.48891294,180.22,180.07,5.5541]
[1753965036395,5.5506,180.2,180.07,5.5541]
[1753965036982,18.48891294,180.22,180.07,5.5541]
[1753965037178,4.19301814,180.21,180.07,5.5541]
[1753965037487,4.19264757,180.2,180.07,5.5541]
[1753965037788,18.48891294,180.22,180.07,5.5541]
[1753965037987,4.19236245,180.21,180.07,5.5541]
[1753965038287,4.19236245,180.2,180.07,5.5541]
[1753965038487,23.09650506,180.22,180.07,5.5541]
[1753965038488,4.19236245,180.19,180.07,5.5541]
[1753965038677,4.19236245,180.18,180.07,5.5541]
[1753965038886,12.93901294,180.16,179.94,12.40328551]
[1753965039084,6.13896202,180.25,179.99,12.93901294]
[1753965039085,12.93901294,180.15,179.99,12.93901294]
[1753965039586,12.93901294,180.12,179.98,5.5572]
[1753965040282,5.5524,180.14,179.98,5.5572]
[1753965040489,18.49141294,180.14,179.98,5.5572]
[1753965040689,12.93901294,180.14,180.0,18.49561294]
[1753965041894,12.93901294,180.14,180.0,12.93901294]
[1753965042094,20.51155664,180.13,179.86,15.50410689]
[1753965042387,1615.91,180.19,179.68,40.28731885]
[1753965042388,12.93901294,180.06,179.91,12.93901294]
[1753965042591,12.93901294,180.06,179.86,0.9671368]
[1753965042793,12.93901294,180.06,179.89,12.93901294]
[1753965043188,12.93901294,180.09,179.92,12.93901294]
[1753965044290,5.5554,180.05,179.92,12.93901294]
[1753965045993,373.16,180.12,179.92,12.93901294]
[1753965045994,5.5557,180.03,179.92,12.93901294]
[1753965046191,389.83,180.12,179.86,19.46684974]
[1753965046192,12.93901294,180.04,179.86,19.46684974]
[1753965046394,12.93901294,179.98,179.83,12.93901294]
[1753965046594,12.93901294,179.98,179.83,0.96735187]
[1753965047001,5.5576,179.97,179.83,0.96735187]
[1753965047789,12.93901294,179.98,179.83,6.52895187]
[1753965047993,12.93901294,179.98,179.83,13.90636481]
[1753965048588,5.5569,180.0,179.83,13.90636481]
[1753965049198,5.5573,179.98,179.83,13.90636481]
[1753965049394,18.49631294,179.98,179.83,13.90636481]
[1753965049594,18.49631294,179.98,179.84,3.08]
[1753965050399,12.93901294,180.01,179.87,3.08]
[1753965051298,5.557,179.99,179.87,3.08]
[1753965052098,5.5576,179.97,179.87,3.08]
[1753965052299,6.13896202,180.02,179.87,3.08]
[1753965052300,17.14035632,179.96,179.87,3.08]
[1753965052507,12.93901294,179.96,179.87,3.08]
[1753965052996,5.5576,179.97,179.87,3.08]
[1753965053203,4.60759212,180.02,179.87,3.08]
[1753965053401,4.19731016,180.01,179.89,12.93901294]
[1753965053602,4.19731016,180.0,179.9,3.08]
[1753965053807,4.19731016,179.99,179.9,3.08]
[1753965053996,4.60759212,180.03,179.9,3.08]
[1753965054197,4.19473168,180.02,179.9,3.08]
[1753965054503,9.75103168,180.01,179.9,3.08]
[1753965054699,4.19473168,180.0,179.9,3.08]
[1753965054900,4.19473168,179.99,179.9,3.08]
[1753965055201,4.19473168,179.98,179.9,3.08]
[1753965055504,5.5563,180.01,179.9,3.08]
[1753965055695,4.19039194,180.0,179.9,3.08]
[1753965055902,4.19039194,179.99,179.9,3.08]
[1753965056100,4.19039194,179.98,179.9,3.08]
[1753965056303,5.5563,180.01,179.9,3.08]
[1753965056503,4.1885419,180.0,179.9,3.08]
[1753965056702,4.1885419,179.99,179.9,3.08]
[1753965056896,5.5563,180.01,179.9,3.08]
[1753965056897,4.1885419,179.98,179.9,3.08]
[1753965057101,5.5563,180.01,179.9,3.08]
[1753965057102,4.1883502,179.97,179.9,3.08]
[1753965057301,5.5563,180.01,179.9,3.08]
[1753965057503,8.79626425,180.0,179.9,3.08]
[1753965057705,14.35336425,179.99,179.9,3.08]
[1753965057898,4.18867213,179.98,179.9,3.08]
[1753965058098,4.18867213,179.97,179.9,3.08]
[1753965058294,4.18867213,179.96,179.9,3.08]
[1753965058494,4.18867213,179.95,179.9,3.08]
[1753965058698,4.60759212,179.99,179.9,3.08]
[1753965058999,4.18345646,179.98,179.9,3.08]
[1753965059303,4.18345646,179.97,179.9,3.08]
[1753965059503,4.18345646,179.96,179.9,3.08]
[1753965059700,4.18345646,179.95,179.9,3.08]
[1753965059904,4.60759212,179.99,179.9,3.08]
[1753965060096,4.18164744,179.98,179.9,3.08]
[1753965060297,4.18164744,179.97,179.9,3.08]
[1753965060501,4.18164744,179.96,179.9,3.08]
[1753965060701,4.60759212,180.01,179.9,3.08]
[1753965061005,8.78954035,180.0,179.9,3.08]
[1753965061208,8.78954035,180.0,179.88,12.93901294]
[1753965061209,4.18194823,179.99,179.91,12.93901294]
[1753965061505,10.16309212,180.04,179.92,3.08]
[1753965061808,4.18415485,180.03,179.95,3.08]
[1753965062005,8.79174697,180.02,179.95,3.08]
[1753965062210,4.18415485,180.01,179.95,3.08]
[1753965062503,4.18415485,180.0,179.96,3.08]
[1753965062721,4.18415485,179.99,179.91,12.93901294]
[1753965063007,4.18415485,179.98,179.97,3.08]
[1753965063197,4.18415485,179.98,179.96,3.08]
[1753965063399,4.18415485,179.97,179.96,3.08]
[1753965064004,5.5561,180.02,179.96,3.08]
[1753965064204,4.15041539,180.01,179.96,3.08]
[1753965064402,4.15041539,180.0,179.96,3.08]
[1753965064606,4.15041539,179.99,179.96,3.08]
[1753965064805,4.15041539,179.98,179.94,3.08]
[1753965065006,4.15041539,179.97,179.94,3.08]
[1753965065208,4.15041539,179.96,179.95,3.08]
[1753965065508,5.5561,180.02,179.95,3.08]
[1753965065708,4.15204771,180.01,179.95,3.08]
[1753965066007,4.15204771,180.0,179.95,3.08]
[1753965066204,4.15204771,179.99,179.89,3.08]
[1753965066396,4.15204771,179.98,179.89,3.08]
[1753965066600,5.5561,180.02,179.89,3.08]
[1753965066816,4.15334683,180.01,179.89,3.08]
[1753965067005,4.15334683,180.0,179.89,3.08]
[1753965067205,4.15334683,179.99,179.89,3.08]
[1753965067512,4.60759212,180.06,179.95,3.08]
[1753965067706,4.15552971,180.05,179.95,3.08]
[1753965067906,4.60759212,180.06,179.95,3.08]
[1753965067907,4.15552971,180.04,179.95,3.08]
[1753965068098,4.15552971,180.03,179.95,3.08]
[1753965068304,4.15552971,180.02,179.95,3.08]
[1753965068498,4.60759212,180.07,179.99,3.08]